bitfinex-derivatives/quotes_SOLF0:USTF0_20241016
["timestamp","ask_amount","ask_price","bid_price","bid_amount"]
[1729098162197,3.2258,155.02,155.01,8.92]
[1729098163805,3.2262,155.0,154.98,12.1467]
[1729098164692,3.2259,155.02,154.99,12.1463]
[1729098164894,5.2,155.05,155.01,8.92]
[1729098165697,3.2258,155.03,155.01,8.92]
[1729098166504,3.226,155.02,154.99,3.2263]
[1729098166700,3.226,155.02,154.99,12.1463]
[1729098167703,14.12,155.05,154.99,12.1463]
[1729098168015,14.12,155.05,154.99,8.92]
[1729098168201,8.92,155.04,154.99,8.92]
[1729098168397,8.92,155.04,154.98,3.2265]
[1729098168398,8.92,155.02,154.97,11.619]
[1729098168605,5.2,155.01,154.96,3.28781022]
[1729098168807,14.12,155.01,154.96,8.92]
[1729098169006,14.12,155.01,154.96,12.08183724]
[1729098169805,3.2268,154.98,154.96,12.08183724]
[1729098171515,3.2265,154.99,154.97,3.2268]
[1729098173219,3.2265,154.99,154.96,12.08183724]
[1729098173410,3.2267,154.98,154.96,6.38883724]
[1729098174016,3.2265,154.99,154.96,6.38883724]
[1729098174418,5.2,155.01,154.97,3.2267]
[1729098174619,14.12,155.01,154.97,3.2267]
[1729098174815,3.2264,155.0,154.97,3.2267]
[1729098176024,5.2,155.01,154.98,8.92]
[1729098176319,3.2258,155.02,155.0,3.2261]
[1729098176828,3.2263,155.0,154.98,12.1466]
[1729098177122,8.92,155.03,154.98,12.1466]
[1729098177318,8.92,155.03,154.98,3.2266]
[1729098177822,3.2262,155.01,154.98,3.2266]
[1729098178527,3.2262,155.01,154.98,12.1466]
[1729098180926,8.92,155.03,154.96,3.16183724]
[1729098181125,3.2264,154.99,154.97,3.2268]
[1729098181821,3.2269,154.97,154.96,3.14643561]
[1729098182024,14.1,154.97,154.95,3.21866441]
[1729098182224,8.92,154.96,154.95,3.21866441]
[1729098182422,8.92,154.96,154.89,8.92]
[1729098182625,8.92,154.93,154.89,8.92]
[1729098182927,12.1478,154.93,154.9,3.2282]
[1729098184234,3.228,154.92,154.89,6.44383704]
[1729098184633,8.92,154.93,154.89,6.44383704]
[1729098185126,3.2279,154.92,154.89,6.44383704]
[1729098185531,8.92,154.93,154.89,3.21543704]
[1729098185832,3.2276,154.94,154.91,3.2279]
[1729098186031,8.92,154.96,154.91,3.19915487]
[1729098186234,8.92,154.96,154.9,8.92]
[1729098186531,5.18,154.97,154.89,8.92]
[1729098186728,8.92,154.9,154.75,2.56646263]
[1729098186929,19.33,154.96,154.82,8.92]
[1729098186930,8.92,154.87,154.82,8.92]
[1729098187127,1.033,154.96,154.83,8.92]
[1729098187329,5.2,154.95,154.85,8.92]
[1729098187537,3.2287,154.89,154.85,12.1492]
[1729098187834,14.12,154.9,154.85,12.1492]
[1729098188138,3.2288,154.88,154.85,12.1492]
[1729098188429,5.2,154.92,154.88,3.2287]
[1729098188625,5.2,154.92,154.88,12.1487]
[1729098188821,3.2282,154.91,154.88,12.1487]
[1729098189832,3.2282,154.91,154.88,3.2287]
[1729098191538,3.2278,154.93,154.88,13.96]
[1729098192323,13.96,154.97,154.9,3.2282]
[1729098192533,2.8818,155.01,154.9,3.2282]
[1729098192534,3.2275,154.95,154.9,3.15525416]
[1729098192729,5.2,154.96,154.9,1.3949]
[1729098192929,5.2,154.96,154.9,4.69380958]
[1729098193131,5.2,154.96,154.9,1.3949]
[1729098193727,13.96,154.99,154.91,3.228]
[1729098194038,5.2,154.98,154.91,1.4002]
[1729098194431,13.96,154.99,154.91,4.65068641]
[1729098194637,2.4716,155.01,154.92,13.96]
[1729098194638,5.2,155.0,154.92,13.96]
[1729098194835,5.2,155.01,154.94,13.96]
[1729098195032,3.2263,155.0,154.97,3.2267]
[1729098195236,5.2,155.01,154.97,3.2663346]
[1729098195540,5.2,155.01,154.91,20.5602]
[1729098195541,3.227,154.97,154.91,20.5602]
[1729098195740,3.227,154.97,154.91,23.86784384]
[1729098196039,3.2275,154.95,154.91,13.13584384]
[1729098196232,3.2275,154.95,154.91,7.93584384]
[1729098196833,3.2275,154.95,154.91,4.70784384]
[1729098197032,3.2275,154.95,154.92,3.2279]
[1729098199837,1.3909,155.0,154.91,18.66784384]
[1729098200044,3.2267,154.98,154.96,3.227]
[1729098200243,5.2,155.02,154.96,3.227]
[1729098200739,1.4151,155.04,154.95,13.96]
[1729098200942,3.2255,155.04,154.98,13.96]
[1729098201244,5.2,155.08,155.03,3.2254]
[1729098201546,5.2,155.08,155.0,15.3537]
[1729098201547,3.2251,155.06,155.0,15.3537]
[1729098201752,3.2251,155.06,155.03,3.2256]
[1729098201948,5.2,155.08,155.0,18.59931803]
[1729098202143,3.2251,155.06,155.0,18.59931803]
[1729098202344,5.2,155.08,155.02,3.2256]
[1729098202644,5.2,155.08,155.0,18.59931803]
[1729098203435,3.2256,155.04,155.01,3.2259]
[1729098206142,3.225,155.06,155.01,3.2259]
[1729098206437,5.2,155.08,155.0,18.59931803]
[1729098206650,5.2,155.08,155.02,3.2257]
[1729098206844,5.2,155.08,155.0,18.59931803]
[1729098207155,5.18,155.09,155.04,3.2253]
[1729098207747,3.2249,155.07,155.04,3.2253]
[1729098209148,3.225,155.06,155.04,3.2253]
[1729098209545,3.225,155.06,155.03,3.2255]
[1729098210356,5.18,155.09,155.0,18.59931803]
[1729098210546,19.14,155.09,155.0,4.63931803]
[1729098211445,13.96,155.05,155.0,3.24561803]
[1729098211649,3.226,155.01,155.0,3.24561803]
[1729098211857,19.14,155.03,154.96,1.4038]
[1729098212653,3.2266,154.99,154.96,1.4038]
[1729098213152,3.2261,155.01,154.98,3.2266]
[1729098213852,5.18,155.06,154.99,13.96]
[1729098214162,5.18,155.07,154.99,18.53332763]
[1729098214353,3.2259,155.02,154.99,7.79972763]
[1729098215353,19.14,155.07,154.99,4.57332763]
[1729098215553,3.2261,155.01,154.99,4.57332763]
[1729098216860,5.18,155.07,155.01,3.226]
[1729098217245,3.2256,155.04,154.99,18.53332763]
[1729098217545,5.18,155.07,154.99,18.53332763]
[1729098218253,3.2256,155.04,155.01,3.2259]
[1729098218448,5.18,155.07,154.99,18.53332763]
[1729098218657,3.2259,155.02,154.99,7.79962763]
[1729098220261,3.2261,155.01,154.99,7.79962763]
[1729098220744,13.96,155.05,154.99,4.57332763]
[1729098220944,3.2262,155.0,154.99,3.19142763]
[1729098221153,5.18,155.03,154.96,6.5838]
[1729098222056,3.2262,155.01,154.98,3.2266]
[1729098222856,5.18,155.03,154.98,3.2266]
[1729098223662,3.2262,155.01,154.98,3.2266]
[1729098223857,5.18,155.03,154.99,3.2262]
[1729098224052,5.18,155.03,154.99,6.41748329]
[1729098224253,13.96,155.07,154.99,6.41748329]
[1729098224254,3.226,155.02,154.99,6.41748329]
[1729098226962,5.18,155.06,154.99,3.19128329]
[1729098226963,3.2262,155.01,154.99,3.19128329]
[1729098227164,3.2262,155.01,154.98,3.2265]
[1729098227559,3.2262,155.01,154.97,13.96]
[1729098227870,3.2262,155.01,154.99,3.2264]
[1729098228070,3.2262,155.01,154.99,6.49350087]
[1729098228264,3.2262,155.01,154.99,3.2264]
[1729098228860,3.2262,155.01,154.99,6.48479032]
[1729098230465,3.2262,155.0,154.99,3.25839032]
[1729098230672,15.3705,155.05,154.96,4.6308]
[1729098231066,3.2266,154.99,154.96,1.4038]
[1729098231264,15.3705,155.05,154.97,3.2267]
[1729098232369,15.3705,155.05,154.96,1.4038]
[1729098232566,15.3705,155.05,154.96,4.6308]
[1729098232967,3.2258,155.03,154.96,4.6308]
[1729098233161,5.18,155.02,154.96,4.6308]
[1729098234069,3.2266,154.99,154.96,4.6308]
[1729098235465,3.2266,154.99,154.97,3.2269]
[1729098236877,3.2267,154.98,154.96,4.6308]
[1729098238284,5.18,155.02,154.95,3.2272]
[1729098239169,3.2268,154.98,154.95,3.2272]
[1729098240172,3.2268,154.98,154.96,3.2271]
[1729098240672,5.18,155.02,154.95,13.96]
[1729098240873,3.2263,155.0,154.98,3.2265]
[1729098244179,3.2268,154.98,154.95,8.92]
[1729098244473,3.2268,154.98,154.96,3.2269]
[1729098244779,3.2264,155.0,154.97,8.92]
[1729098245176,3.2259,155.02,154.98,8.92]
[1729098245475,5.18,155.07,155.01,8.92]
[1729098245672,3.2248,155.07,155.04,12.1453]
[1729098245874,14.1,155.09,155.04,8.92]
[1729098246277,3.2247,155.08,155.04,12.19215568]
[1729098246576,8.92,155.08,155.04,3.27215568]
[1729098246778,3.2251,155.06,155.03,3.2256]
[1729098246977,8.92,155.08,155.03,3.25701705]
[1729098247275,3.2258,155.03,155.0,3.2261]
[1729098247484,8.92,155.04,154.99,6.06374882]
[1729098247974,13.94,155.06,154.99,9.29004882]
[1729098248183,5.18,155.05,154.99,9.29004882]
[1729098249081,3.2258,155.02,154.99,9.29004882]
[1729098250583,3.2258,155.02,154.99,6.45654882]
[1729098258402,3.2262,155.01,154.99,6.45654882]
[1729098260695,6.5835,155.05,154.99,6.45654882]
[1729098260901,3.2259,155.02,154.99,6.45654882]
[1729098267007,5.18,155.04,154.99,3.23024882]
[1729098267307,5.18,155.04,154.97,5.18]
[1729098267499,5.18,155.04,154.99,3.2264]
[1729098267807,5.18,155.04,154.99,3.17773709]
[1729098268002,5.18,155.07,155.0,1.426]
[1729098268202,5.18,155.07,155.0,4.65567777]
[1729098268402,3.2255,155.04,155.01,3.2259]
[1729098269803,3.2255,155.04,155.01,12.1459]
[1729098271708,1.3684,155.1,155.02,8.92]
[1729098271907,8.92,155.08,155.03,3.2255]
[1729098272211,14.1,155.08,155.03,3.2255]
[1729098273411,3.2252,155.05,155.03,3.2255]
[1729098279618,3.2252,155.05,155.02,12.1457]
[1729098280008,8.92,155.05,155.0,7.88177777]
[1729098280211,8.92,155.05,155.0,4.65567777]
[1729098280923,8.92,155.05,155.0,7.88187777]
[1729098281418,3.2257,155.03,155.0,7.88187777]
[1729098282715,8.92,155.05,155.0,7.88187777]
[1729098283019,8.92,155.04,155.0,3.22967777]
[1729098283219,8.92,155.04,154.99,1.403]
[1729098283518,3.2257,155.03,154.99,1.403]
[1729098283718,8.92,155.04,154.99,4.68463407]
[1729098284014,8.92,155.04,154.99,1.403]
[1729098284519,3.2261,155.01,154.99,4.64785964]
[1729098284819,3.2261,155.01,154.99,1.403]
[1729098285009,3.2261,155.01,154.99,4.62624659]
[1729098285317,3.2261,155.01,154.99,1.403]
[1729098285715,3.2261,155.01,154.99,4.62009587]
[1729098286017,3.2261,155.01,154.99,1.403]
[1729098286419,3.2261,155.01,154.99,4.70268477]
[1729098286618,3.2261,155.01,154.99,1.403]
[1729098287315,3.2261,155.01,154.99,4.61364361]
[1729098289020,12.1462,155.0,154.99,3.21064361]
[1729098289316,8.92,155.0,154.94,11.618]
[1729098289519,3.2271,154.96,154.94,14.8454]
[1729098289715,8.92,155.0,154.94,14.8454]
[1729098290119,8.92,155.0,154.94,11.618]
[1729098290419,3.227,154.97,154.95,3.2273]
[1729098290826,3.227,154.97,154.94,11.618]
[1729098291025,3.227,154.97,154.94,14.8454]
[1729098292116,8.92,155.0,154.94,11.618]
[1729098292425,8.92,155.02,154.97,12.1468]
[1729098292828,3.2264,155.0,154.97,12.1468]
[1729098293027,3.2264,155.0,154.98,3.2266]
[1729098295524,14.1,155.03,154.97,8.92]
[1729098295729,5.18,155.04,154.99,8.92]
[1729098295930,5.18,155.04,154.99,12.1604195]
[1729098296425,3.2257,155.03,155.0,8.92]
[1729098296630,3.2257,155.03,155.01,8.92]
[1729098296822,3.2257,155.03,155.01,12.13492979]
[1729098297531,3.2257,155.03,155.01,15.36092979]
[1729098298428,5.18,155.05,155.02,12.1457]
[1729098298624,5.18,155.07,155.02,12.1457]
[1729098299429,3.2254,155.05,155.02,12.1457]
[1729098300029,3.2254,155.05,155.02,8.92]
[1729098300228,3.2254,155.05,155.02,12.1457]
[1729098300634,8.92,155.06,155.01,12.13492979]
[1729098300833,8.92,155.05,155.0,1.367]
[1729098301019,8.92,155.04,155.0,10.287]
[1729098301222,3.2255,155.04,155.01,3.226]
[1729098301424,8.92,155.05,155.01,6.42558186]
[1729098302733,3.2257,155.03,155.01,6.42558186]
[1729098304937,8.92,155.04,155.01,3.19958186]
[1729098305133,3.2258,155.02,155.0,13.5132]
[1729098305538,3.2259,155.02,155.0,4.5932]
[1729098305737,8.92,155.04,155.0,7.79633282]
[1729098306236,3.2258,155.03,155.0,7.79633282]
[1729098307134,1.423,155.1,155.02,8.92]
[1729098307340,5.16,155.07,155.04,8.92]
[1729098308235,3.2252,155.05,155.04,8.92]
[1729098309032,1.423,155.1,155.04,8.92]
[1729098309232,5.16,155.09,155.05,8.92]
[1729098310535,3.2249,155.07,155.05,12.1452]
[1729098310936,8.3845,155.09,155.06,12.145]
[1729098311239,8.3845,155.09,155.06,8.92]
[1729098311240,5.16,155.09,155.06,8.92]
[1729098312140,3.2243,155.1,155.06,8.92]
[1729098312336,3.2243,155.1,155.08,8.92]
[1729098313240,3.2243,155.1,155.08,12.21346733]
[1729098313539,3.2243,155.1,155.08,15.43806733]
[1729098314645,14.08,155.14,155.08,15.43806733]
[1729098315844,3.2241,155.11,155.08,15.43806733]
[1729098316437,3.2242,155.1,155.08,15.43806733]
[1729098319347,3.2242,155.1,155.09,8.92]
[1729098319848,14.08,155.15,155.09,12.1443]
[1729098320349,3.2235,155.14,155.1,3.2241]
[1729098320548,14.08,155.15,155.1,3.2241]
[1729098321144,3.2237,155.13,155.1,3.2241]
[1729098321647,14.08,155.15,155.1,3.2241]
[1729098321852,14.08,155.15,155.1,12.1441]
[1729098322339,14.08,155.15,155.1,3.2241]
[1729098322535,8.92,155.13,155.08,6.51796733]
[1729098322737,8.92,155.13,155.08,12.1445]
[1729098322945,8.92,155.13,155.08,15.41304087]
[1729098323146,3.2241,155.11,155.09,8.92]
[1729098323550,3.2239,155.12,155.09,8.92]
[1729098323848,14.08,155.15,155.09,8.92]
[1729098324745,3.2241,155.11,155.09,12.1443]
[1729098326747,5.16,155.15,155.1,3.2241]
[1729098327049,14.08,155.15,155.1,3.2241]
[1729098327646,3.2239,155.12,155.1,3.2241]
[1729098330555,14.08,155.15,155.08,3.26854087]
[1729098330556,3.2235,155.14,155.11,12.1438]
[1729098330754,3.2235,155.14,155.12,8.92]
[1729098331057,8.92,155.16,155.12,3.21771584]
[1729098331248,8.92,155.15,155.08,1.4073]
[1729098331445,8.92,155.15,155.1,8.92]
[1729098331649,8.92,155.12,155.08,3.19450419]
[1729098331856,8.92,155.09,155.01,1.4073]
[1729098332057,8.92,155.07,155.01,10.3273]
[1729098332253,3.2253,155.05,155.02,12.1457]
[1729098332546,8.92,155.08,155.03,8.92]
[1729098333257,8.92,155.08,155.03,12.1456]
[1729098333657,3.2252,155.05,155.03,8.92]
[1729098336762,3.2254,155.04,155.02,12.16318419]
[1729098336962,8.92,155.07,155.02,12.16318419]
[1729098337563,3.2255,155.04,155.02,12.16318419]
[1729098342159,3.2256,155.03,155.02,3.24318419]
[1729098342359,8.92,155.04,155.0,1.3277]
[1729098342664,8.92,155.05,155.0,10.2477]
[1729098342865,3.226,155.02,155.0,13.52330499]
[1729098343065,8.92,155.05,155.0,13.52330499]
[1729098343760,3.226,155.02,155.0,13.52330499]
[1729098349371,3.226,155.01,155.0,3.27560499]
[1729098349669,1.4352,155.05,155.0,8.92]
[1729098349871,1.4352,155.05,155.0,12.14161193]
[1729098350080,3.226,155.01,155.0,12.14161193]
[1729098350368,3.226,155.01,155.0,3.22161193]
[1729098350571,3.226,155.01,154.95,7.9664]
[1729098350572,3.227,154.97,154.95,1.4088]
[1729098350769,8.92,154.99,154.92,1.3449]
[1729098350967,8.92,154.99,154.93,8.92]
[1729098351471,8.92,154.97,154.91,3.30764384]
[1729098351677,8.92,154.95,154.9,8.92]
[1729098351866,8.92,154.95,154.89,8.92]
[1729098352172,3.2283,154.91,154.89,8.92]
[1729098353670,3.2283,154.91,154.87,7.74865488]
[1729098353973,3.2283,154.91,154.89,8.92]
[1729098357475,5.16,154.96,154.9,8.92]
[1729098357679,5.16,154.96,154.93,8.92]
[1729098357973,3.2275,154.95,154.93,8.92]
[1729098358174,5.16,154.97,154.93,8.92]
[1729098358371,5.16,154.97,154.94,8.92]
[1729098359579,3.2272,154.96,154.94,8.92]
[1729098360078,3.2266,154.99,154.96,3.2269]
[1729098360268,5.16,155.0,154.96,12.16888872]
[1729098360577,5.16,155.0,154.96,8.92]
[1729098360771,3.2269,154.98,154.96,8.92]
[1729098360970,3.2269,154.98,154.96,12.07109284]
[1729098363982,3.2269,154.97,154.96,12.07109284]
[1729098364882,5.16,155.0,154.96,12.07109284]
[1729098365087,3.2267,154.98,154.96,12.07109284]
[1729098365889,5.16,155.02,154.96,12.07109284]
[1729098366099,5.16,155.03,154.99,8.92]
[1729098366598,3.2262,155.01,154.99,8.92]
[1729098366798,3.2262,155.01,154.99,12.06717234]
[1729098367093,5.16,155.03,154.99,12.06717234]
[1729098367291,6.5479,155.04,155.01,8.92]
[1729098367489,8.92,155.07,155.02,8.92]
[1729098367687,8.92,155.07,154.95,1.3707]
[1729098367688,8.3849,155.07,155.04,12.1454]
[1729098367892,5.16,155.07,155.04,8.92]
[1729098368099,5.16,155.07,155.04,12.06588172]
[1729098368797,3.2251,155.06,155.04,12.06588172]
[1729098369196,5.16,155.07,155.04,12.06588172]
[1729098369597,3.225,155.06,155.04,12.06588172]
[1729098375305,3.2252,155.05,155.04,3.14588172]
[1729098375504,3.2252,155.05,155.03,8.92]
[1729098376005,3.2252,155.05,155.03,12.08788641]
[1729098376505,3.2252,155.05,155.03,3.16788641]
[1729098376702,3.2252,155.05,155.02,8.92]
[1729098376998,3.2252,155.05,155.02,12.1458]
[1729098377200,3.2252,155.05,155.03,8.92]
[1729098377506,3.2252,155.05,155.03,12.19206349]
[1729098377706,3.2252,155.05,155.03,3.27206349]
[1729098377908,3.2252,155.05,155.02,12.1458]
[1729098378406,3.226,155.02,154.99,5.9982]
[1729098378608,8.92,155.03,154.93,69.68]
[1729098378813,8.92,155.03,154.97,8.92]
[1729098379409,8.92,155.03,154.97,12.1467]
[1729098379410,3.2263,155.0,154.97,12.1467]
[1729098379713,8.92,155.03,154.97,12.1467]
[1729098381200,5.16,155.05,155.0,8.92]
[1729098381610,8.92,155.04,154.99,8.92]
[1729098382307,8.92,155.04,154.99,12.1463]
[1729098382505,8.92,155.04,154.99,8.92]
[1729098383710,3.226,155.02,154.99,8.92]
[1729098384909,8.92,155.04,154.96,1.4152]
[1729098385211,8.92,155.04,154.98,8.92]
[1729098385212,3.2264,155.0,154.98,8.92]
[1729098386116,3.2262,155.01,154.98,12.1465]
[1729098386417,8.92,155.04,154.98,12.1465]
[1729098387411,3.2263,155.0,154.98,12.1465]
[1729098390011,8.92,155.04,154.99,12.1463]
[1729098390609,3.226,155.02,154.99,12.1463]
[1729098390810,3.226,155.02,154.99,8.92]
[1729098391011,3.226,155.02,155.01,8.92]
[1729098391710,3.2257,155.03,155.01,8.92]
[1729098393722,3.2257,155.03,155.01,12.146]
[1729098394519,3.2257,155.03,155.01,8.92]
[1729098398027,3.2257,155.03,155.0,3.2261]
[1729098398229,3.2259,155.02,154.99,12.1463]
[1729098401228,8.92,155.05,154.99,8.92]
[1729098401428,3.2258,155.03,155.0,3.2261]
[1729098401632,8.92,155.05,154.99,8.92]
[1729098401822,3.2265,154.99,154.97,3.2268]
[1729098402018,8.92,155.03,154.96,8.92]
[1729098402335,3.2271,154.96,154.95,3.22848128]
[1729098402631,8.92,154.97,154.92,12.1478]
[1729098403022,3.2274,154.95,154.92,12.1478]
[1729098403329,8.92,154.97,154.92,8.92]
[1729098403527,3.2276,154.94,154.92,8.92]
[1729098404117,8.92,154.98,154.93,8.92]
[1729098404321,1.3406,155.01,154.94,8.92]
[1729098404521,5.16,155.0,154.96,8.92]
[1729098404720,3.2266,154.99,154.96,15.44819449]
[1729098406631,3.2266,154.99,154.97,8.92]
[1729098407431,8.92,155.02,154.98,12.1466]
[1729098407432,3.2262,155.01,154.98,12.1466]
[1729098408128,3.2262,155.01,154.98,15.45337705]
[1729098411522,1.3406,155.06,154.98,12.22677705]
[1729098411721,1.3406,155.06,155.01,8.92]
[1729098411931,5.16,155.07,155.03,8.92]
[1729098412131,3.2253,155.05,155.03,8.92]
[1729098413633,3.225,155.06,155.03,12.1456]
[1729098416842,8.92,155.09,155.04,12.1454]
[1729098417043,3.2249,155.07,155.04,12.1454]
[1729098418535,8.92,155.09,155.04,12.1454]
[1729098418739,3.225,155.06,155.04,8.92]
[1729098420738,3.2248,155.08,155.05,3.2252]
[1729098420939,5.14,155.1,155.04,8.92]
[1729098421141,8.92,155.13,155.07,8.92]
[1729098421346,8.92,155.13,155.02,8.0022]
[1729098421347,1.4226,155.16,155.1,8.92]
[1729098421540,5.14,155.15,155.1,12.18625796]
[1729098422352,5.14,155.15,155.11,8.92]
[1729098422847,3.2234,155.14,155.11,8.92]
[1729098423053,3.2234,155.14,155.11,12.21077022]
[1729098423443,5.14,155.15,155.11,12.21077022]
[1729098423642,3.2236,155.13,155.11,12.21077022]
[1729098423838,8.92,155.17,155.12,12.1437]
[1729098424044,8.92,155.2,155.15,8.92]
[1729098424247,4.91506441,155.22,155.17,8.92]
[1729098424443,71.82254721,155.23,155.17,8.92]
[1729098424444,80.74254721,155.23,155.17,8.92]
[1729098424744,71.82254721,155.23,155.19,8.92]
[1729098425342,3.2219,155.21,155.19,8.92]
[1729098425538,14.06,155.24,155.19,8.92]
[1729098425742,14.06,155.24,155.14,5.14]
[1729098425743,14.06,155.24,155.2,8.92]
[1729098425944,3.2216,155.23,155.2,3.19042989]
[1729098426246,3.2216,155.23,155.18,13.92]
[1729098426448,3.2216,155.23,155.19,5.9553]
[1729098428355,3.2216,155.23,155.2,13.92]
[1729098428654,3.2211,155.25,155.21,3.2219]
[1729098428944,1.4465,155.32,155.22,13.92]
[1729098428945,5.14,155.29,155.22,13.92]
[1729098429147,19.06,155.29,155.2,13.92]
[1729098429753,3.2216,155.23,155.2,13.92]
[1729098429949,3.2216,155.23,155.2,17.20157812]
[1729098431951,19.06,155.29,155.2,20.42357812]
[1729098432351,3.2212,155.25,155.21,3.2218]
[1729098432550,19.06,155.29,155.2,17.20157812]
[1729098432852,5.14,155.29,155.2,17.20157812]
[1729098433447,5.14,155.29,155.22,17.1416]
[1729098434048,3.2209,155.26,155.22,17.1416]
[1729098434855,3.2215,155.23,155.2,17.20157812]
[1729098435058,3.2215,155.23,155.2,13.92]
[1729098435650,3.2215,155.23,155.2,17.11288171]
[1729098436151,19.36,155.4,155.22,13.92]
[1729098436355,13.92,155.33,155.22,22.21293042]
[1729098436657,15.3385,155.33,155.22,22.21293042]
[1729098436958,3.2209,155.26,155.22,25.43443042]
[1729098437154,3.2209,155.26,155.22,20.29443042]
[1729098437351,3.2215,155.23,155.22,3.15293042]
[1729098437551,3.2215,155.23,155.2,19.06]
[1729098437744,3.2215,155.23,155.2,13.92]
[1729098438155,0.4099,155.32,155.2,13.92]
[1729098438156,3.2219,155.21,155.2,3.29962774]
[1729098438452,5.14,155.25,155.16,5.14]
[1729098438652,3.2222,155.2,155.16,11.55161334]
[1729098440048,3.2222,155.2,155.16,8.32881334]
[1729098440257,3.2222,155.2,155.17,17.1427]
[1729098441554,5.14,155.25,155.17,13.92]
[1729098442152,3.2222,155.2,155.17,13.92]
[1729098444657,3.2222,155.2,155.17,17.1427]
[1729098445757,3.2221,155.21,155.18,3.2224]
[1729098445962,3.2221,155.21,155.19,13.92]
[1729098446458,5.14,155.26,155.19,13.92]
[1729098446972,5.14,155.26,155.17,13.92]
[1729098447352,13.92,155.24,155.16,3.18881334]
[1729098447565,1.3598,155.25,155.15,19.06]
[1729098447856,3.2225,155.19,155.15,19.06]
[1729098448056,1.3598,155.25,155.15,22.3044123]
[1729098449556,13.92,155.22,155.15,3.2444123]
[1729098449757,19.06,155.22,155.14,2.7824]
[1729098450060,19.06,155.22,155.14,5.96769693]
[1729098450564,19.06,155.22,155.14,3.18529693]
[1729098450750,19.06,155.22,155.12,13.92]
[1729098451066,13.92,155.18,155.1,13.92]
[1729098451254,5.14,155.17,155.1,13.92]
[1729098451459,3.2238,155.12,155.1,13.92]
[1729098452051,5.14,155.17,155.1,13.92]
[1729098452256,3.2241,155.11,155.08,13.92]
[1729098453553,3.2241,155.11,155.08,17.1446]
[1729098455268,3.2242,155.1,155.08,13.92]
[1729098457669,3.2242,155.1,155.08,17.1445]
[1729098460871,3.2242,155.1,155.08,13.92]
[1729098461165,6.4564,155.17,155.07,4.1177]
[1729098461166,3.2235,155.14,155.07,4.1177]
[1729098461367,13.92,155.16,155.07,7.3425]
[1729098461772,3.2235,155.14,155.07,7.3425]
[1729098462069,13.92,155.16,155.07,7.3425]
[1729098462467,3.2241,155.11,155.08,13.92]
[1729098463768,3.2242,155.1,155.08,13.92]
[1729098464171,13.92,155.16,155.06,17.17377522]
[1729098465069,3.2247,155.08,155.06,17.17377522]
[1729098465276,5.14,155.12,155.06,17.17377522]
[1729098466675,3.2245,155.09,155.06,20.39867522]
[1729098466873,3.2245,155.09,155.06,3.25377522]
[1729098467076,5.14,155.12,155.04,19.06]
[1729098467279,3.2254,155.04,155.01,16.6031]
[1729098467578,3.2254,155.04,155.01,5.96496026]
[1729098467776,3.2254,155.04,155.01,9.19086026]
[1729098469680,13.92,155.12,155.01,19.88496026]